lending/lending_fUSD_20241120
["ID","MTS","AMOUNT","RATE_DAILY","PERIOD"]
[342724452,1732086702268,-500.0,0.00055616,120]
[342724453,1732086702279,-500.0,0.00055616,120]
[342724454,1732086702288,-500.0,0.00055616,120]
[342724455,1732086702297,-500.0,0.00055616,120]
[342724456,1732086702308,-500.0,0.00055616,120]
[342724457,1732086702320,-500.0,0.00055616,120]
[342724458,1732086702331,-504.67805893,0.00055616,120]
[342724459,1732086702340,-500.0,0.00055616,120]
[342724460,1732086702349,-500.0,0.00055616,120]
[342724461,1732086702359,-501.9264478,0.00055616,120]
[342724462,1732086702368,-798.52,0.00055616,120]
[342724463,1732086702377,-500.0,0.00055616,120]
[342724464,1732086702389,-500.0,0.00055616,120]
[342724465,1732086702400,-982.26,0.00055616,120]
[342724466,1732086702409,-500.0,0.00055616,120]
[342724467,1732086702420,-500.0,0.00055616,120]
[342724468,1732086702430,-500.0,0.00055616,120]
[342724469,1732086702439,-500.0,0.00055616,120]
[342724470,1732086702449,-500.0,0.00055616,120]
[342724471,1732086702458,-457.89596842,0.00055616,120]
[342724472,1732086702467,-707.74,0.00055616,120]
[342724473,1732086702477,-500.0,0.00055616,120]
[342724474,1732086702487,-500.0,0.00055616,120]
[342724475,1732086702497,-4470.82,0.00055616,120]
[342724476,1732086702506,-503.17380194,0.00055616,120]
[342724477,1732086702515,-500.0,0.00055616,120]
[342724478,1732086702524,-500.0,0.00055616,120]
[342724479,1732086702534,-500.0,0.00055616,120]
[342724480,1732086702543,-500.0,0.00055616,120]
[342724481,1732086702553,-500.0,0.00055616,120]
[342724482,1732086702563,-500.0,0.00055616,120]
[342724483,1732086702575,-650.76,0.00055616,21]
[342724484,1732086702585,-2268.24,0.00055616,120]
[342724485,1732086702597,-502.11662328,0.00055616,120]
[342724486,1732086702607,-3957.68,0.00055616,60]
[342724487,1732086702616,-500.0,0.00055616,120]
[342724488,1732086702626,-500.0,0.00055616,120]
[342724489,1732086702637,-501.62424581,0.00055616,120]
[342724490,1732086702647,-500.0,0.00055616,120]
[342724491,1732086702657,-717.59,0.00055616,120]
[342724492,1732086702667,-500.0,0.00055616,120]
[342724493,1732086702676,-3094.65,0.00055616,120]
[342724494,1732086702687,-2000.0,0.00055616,120]
[342724495,1732086702699,-506.32548314,0.00055616,120]
[342724496,1732086702709,-500.0,0.00055616,120]
[342724497,1732086702718,-500.0,0.00055616,120]
[342724498,1732086702727,-500.0,0.00055616,120]
[342724499,1732086702737,-500.0,0.00055616,120]
[342724500,1732086702747,-998.06,0.00055616,120]
[342724501,1732086702758,-500.0,0.00055616,120]
[342724502,1732086702768,-500.0,0.00055616,120]
[342724503,1732086702777,-1516.88,0.00055616,120]
[342724504,1732086702786,-617.47,0.00055616,120]
[342724505,1732086702796,-2604.2,0.00055616,120]
[342724506,1732086702805,-500.17,0.00055616,120]
[342724507,1732086702815,-500.0,0.00055616,120]
[342724508,1732086702824,-500.0,0.00055616,120]
[342724509,1732086702833,-500.0,0.00055616,120]
[342724510,1732086702842,-500.0,0.00055616,120]
[342724511,1732086702852,-635.36,0.00055616,120]
[342724512,1732086702862,-500.0,0.00055616,120]
[342724513,1732086702871,-500.0,0.00055616,120]
[342724514,1732086702880,-500.0,0.00055616,120]
[342724515,1732086702891,-233.54122526,0.00055616,120]
[342724516,1732086702900,-500.0,0.00055616,120]
[342724517,1732086702909,-500.0,0.00055616,120]
[342724518,1732086702918,-500.0,0.00055616,120]
[342724519,1732086702928,-506.77667148,0.00055616,120]
[342724520,1732086702937,-500.0,0.00055616,120]
[342724521,1732086702946,-500.0,0.00055616,120]
[342724522,1732086702956,-700.75,0.00055616,120]
[342724523,1732086702965,-500.0,0.00055616,120]
[342724524,1732086702974,-500.0,0.00055616,120]
[342724525,1732086702985,-500.0,0.00055616,120]
[342724526,1732086702994,-505.72,0.00055616,120]
[342724527,1732086703005,-500.0,0.00055616,120]
[342724528,1732086703015,-500.0,0.00055616,120]
[342724529,1732086703026,-500.0,0.00055616,120]
[342724530,1732086703038,-1000.0,0.00055616,120]
[342724531,1732086703047,-500.0,0.00055616,120]
[342724532,1732086703056,-500.0,0.00055616,120]
[342724533,1732086703065,-500.0,0.00055616,30]
[342724534,1732086703074,-500.0,0.00055616,120]
[342724535,1732086703084,-566.04325836,0.00055616,120]
[342724536,1732086703094,-500.0,0.00055616,120]
[342724537,1732086703105,-500.0,0.00055616,120]
[342724538,1732086703115,-3206.56,0.00055616,120]
[342724539,1732086703124,-508.31,0.00055616,120]
[342724540,1732086703135,-946.93,0.00055616,120]
[342724541,1732086703146,-500.0,0.00055616,120]
[342724542,1732086703155,-500.0,0.00055616,120]
[342724543,1732086703164,-500.0,0.00055616,120]
[342724544,1732086703173,-500.0,0.00055616,120]
[342724545,1732086703182,-500.0,0.00055616,120]
[342724546,1732086703191,-500.0,0.00055616,120]
[342724547,1732086703200,-500.0,0.00055616,120]
[342724548,1732086703210,-500.0,0.00055616,120]
[342724549,1732086703220,-500.0,0.00055616,120]
[342724550,1732086703231,-500.0,0.00055616,120]
[342724551,1732086703239,-500.0,0.00055616,120]
[342724552,1732086703250,-500.0,0.00055616,120]
[342724553,1732086703260,-500.0,0.00055616,120]
[342724554,1732086703271,-500.0,0.00055616,120]
[342724555,1732086703282,-500.0,0.00055616,120]
[342724556,1732086703291,-500.0,0.00055616,120]
[342724557,1732086703301,-500.0,0.00055616,120]
[342724558,1732086703315,-2581.57,0.00055616,120]
[342724559,1732086703325,-500.0,0.00055616,120]
[342724560,1732086703335,-615.10880212,0.00055616,120]
[342724561,1732086703346,-500.0,0.00055616,120]
[342724562,1732086703359,-500.0,0.00055616,120]
[342724563,1732086703368,-1301.4,0.00055616,120]
[342724564,1732086703377,-5192.93,0.00055616,120]
[342724565,1732086703434,-500.0,0.00055616,120]
[342724566,1732086703443,-500.0,0.00055616,120]
[342724567,1732086703452,-355.66526357,0.00055616,120]
[342724568,1732086703461,-500.0,0.00055616,120]
[342724569,1732086703470,-700.0,0.00055616,120]
[342724570,1732086703479,-500.0,0.00055616,120]
[342724571,1732086703489,-500.0,0.00055616,120]
[342724572,1732086703498,-500.0,0.00055616,120]
[342724573,1732086703507,-618.74402158,0.00055616,120]
[342724574,1732086703517,-500.0,0.00055616,120]
[342724575,1732086703527,-500.0,0.00055616,120]
[342724576,1732086703537,-852.9,0.00055616,120]
[342724577,1732086703546,-167.18158383,0.00055616,120]
[342724578,1732086703555,-500.0,0.00055616,120]
[342724579,1732086703565,-2774.17,0.00055616,120]
[342724580,1732086703574,-3061.68,0.00055616,120]
[342724581,1732086703583,-500.0,0.00055616,120]
[342724582,1732086703592,-500.0,0.00055616,120]
[342724583,1732086703602,-500.0,0.00055616,120]
[342724584,1732086703612,-500.0,0.00055616,120]
[342724585,1732086703621,-500.0,0.00055616,120]
[342724586,1732086703630,-2031.6,0.00055616,120]
[342724587,1732086703640,-535.4865047,0.00055616,120]
[342724588,1732086703649,-506.98477015,0.00055616,120]
[342724589,1732086703660,-500.0,0.00055616,120]
[342724590,1732086703670,-500.0,0.00055616,120]
[342724591,1732086703680,-500.0,0.00055616,120]
[342724592,1732086703690,-500.0,0.00055616,120]
[342724593,1732086703701,-500.0,0.00055616,120]
[342724594,1732086703711,-500.0,0.00055616,120]
[342724595,1732086703722,-500.0,0.00055616,120]
[342724596,1732086703731,-500.0,0.00055616,120]
[342724597,1732086703740,-500.0,0.00055616,120]
[342724598,1732086703751,-500.0,0.00055616,120]
[342724599,1732086703762,-500.0,0.00055616,120]
[342724600,1732086703772,-500.0,0.00055616,120]
[342724601,1732086703783,-2936.91,0.00055616,120]
[342724602,1732086703792,-500.0,0.00055616,120]
[342724603,1732086703802,-500.0,0.00055616,120]
[342724604,1732086703813,-500.0,0.00055616,120]
[342724605,1732086703823,-500.0,0.00055616,120]
[342724606,1732086703833,-720.2,0.00055616,120]
[342724607,1732086703844,-500.0,0.00055616,120]
[342724608,1732086703855,-600.82387976,0.00055616,120]
[342724609,1732086703865,-500.0,0.00055616,120]
[342724610,1732086703874,-500.0,0.00055616,120]
[342724611,1732086703884,-500.0,0.00055616,120]
[342724612,1732086703893,-500.0,0.00055616,120]
[342724613,1732086703903,-2810.53,0.00055616,120]
[342724614,1732086703912,-500.0,0.00055616,120]
[342724615,1732086703922,-500.0,0.00055616,120]
[342724616,1732086703931,-500.0,0.00055616,120]
[342724617,1732086703940,-500.0,0.00055616,120]
[342724618,1732086703949,-500.0,0.00055616,120]
[342724619,1732086703958,-1822.63,0.00055616,120]
[342724620,1732086703968,-1273.99,0.00055616,120]
[342724621,1732086703978,-500.0,0.00055616,120]
[342724622,1732086703987,-500.0,0.00055616,120]
[342724623,1732086703996,-500.0,0.00055616,120]
[342724624,1732086704006,-850.0,0.00055616,120]
[342724625,1732086704016,-500.0,0.00055616,120]
[342724626,1732086704025,-500.0,0.00055616,120]
[342724627,1732086704034,-500.0,0.00055616,120]
[342724628,1732086704043,-500.0,0.00055616,120]
[342724629,1732086704052,-711.44,0.00055616,120]
[342724630,1732086704061,-500.0,0.00055616,120]
[342724631,1732086704070,-729.82,0.00055616,120]
[342724632,1732086704079,-500.0,0.00055616,120]
[342724633,1732086704089,-556.31637507,0.00055616,120]
[342724634,1732086704098,-500.0,0.00055616,120]
[342724635,1732086704109,-2955.44,0.00055616,120]
[342724636,1732086704119,-500.0,0.00055616,120]
[342724637,1732086704128,-500.0,0.00055616,20]
[342724638,1732086704137,-1003.87863235,0.00055616,2]
[342724639,1732086704146,-500.0,0.00055616,120]
[342724640,1732086704156,-2080.78,0.00055616,120]
[342724641,1732086704165,-500.0,0.00055616,120]
[342724642,1732086704175,-500.0,0.00055616,120]
[342724643,1732086704184,-500.0,0.00055616,120]
[342724644,1732086704194,-500.0,0.00055616,120]
[342724645,1732086704203,-1918.47,0.00055616,120]
[342724646,1732086704213,-500.0,0.00055616,120]
[342724647,1732086704224,-606.63,0.00055616,120]
[342724648,1732086704236,-500.0,0.00055616,120]
[342724649,1732086704246,-1137.2,0.00055616,3]
[342724650,1732086704257,-500.0,0.00055616,120]
[342724651,1732086704267,-500.0,0.00055616,120]
[342724652,1732086704277,-2847.53,0.00055616,120]
[342724653,1732086704289,-502.75767608,0.00055616,120]
[342724654,1732086704298,-500.0,0.00055616,120]
[342724655,1732086704309,-347.83834239,0.00055616,120]
[342724656,1732086704322,-500.0,0.00055616,120]
[342724657,1732086704332,-500.0,0.00055616,120]
[342724658,1732086704341,-500.0,0.00055616,120]
[342724659,1732086704353,-500.0,0.00055616,120]
[342724660,1732086704363,-3545.19,0.00055616,120]
[342724661,1732086704372,-500.0,0.00055616,120]
[342724662,1732086704381,-500.0,0.00055616,120]
[342724663,1732086704390,-500.0,0.00055616,120]
[342724664,1732086704400,-865.61,0.00055616,120]
[342724665,1732086704410,-186.33,0.00055616,120]
[342724666,1732086704420,-299999.94820621,0.0005588,30]
[342724667,1732086704430,-500.0,0.0005589,120]
[342724668,1732086704439,-500.0,0.0005589,120]
[342724669,1732086704448,-500.0,0.0005589,7]
[342724670,1732086704459,-3015.583357,0.0005589,120]
[342724671,1732086704469,-500.0,0.0005589,120]
[342724672,1732086704480,-2434.320799,0.0005589,120]
[342724673,1732086704491,-500.0,0.0005589,120]
[342724674,1732086704499,-329.55342058,0.0005589,120]
[342724675,1732086704509,-537.00001684,0.0005589,120]
[342724676,1732086704518,-500.0,0.0005589,120]
[342724677,1732086704529,-500.0,0.0005589,120]
[342724678,1732086704537,-500.0,0.0005589,120]
[342724679,1732086704547,-453.69208027,0.0005589,120]
[342724680,1732086704556,-500.0,0.0005589,120]
[342724681,1732086704565,-500.0,0.0005589,120]
[342724682,1732086704575,-500.0,0.0005589,120]
[342724683,1732086704585,-500.0,0.0005589,120]
[342724684,1732086704595,-500.0,0.0005589,120]
[342724685,1732086704606,-500.0,0.0005589,120]
[342724686,1732086704614,-501.79437533,0.0005589,120]
[342724687,1732086704623,-500.0,0.0005589,120]
[342724688,1732086704632,-200.0,0.0005589,10]
[342724689,1732086704644,-500.0,0.0005589,120]
[342724690,1732086704654,-500.0,0.0005589,120]
[342724691,1732086704663,-500.0,0.0005589,120]
[342724692,1732086704673,-500.0,0.0005589,120]
[342724693,1732086704683,-505.30095463,0.0005589,120]
[342724694,1732086704692,-500.0,0.0005589,120]
[342724695,1732086704703,-500.0,0.0005589,120]
[342724696,1732086704713,-500.0,0.0005589,120]
[342724697,1732086704722,-493.13649719,0.0005589,120]
[342724698,1732086704731,-500.0,0.0005589,120]
[342724699,1732086704740,-500.0,0.0005589,120]
[342724700,1732086704750,-524.49864731,0.0005589,120]
[342724701,1732086704761,-502.43651428,0.0005589,120]
[342724702,1732086704772,-496.3428023,0.0005589,120]
[342724703,1732086704782,-497.89800379,0.0005589,120]
[342724704,1732086704791,-500.0,0.0005589,14]
[342724705,1732086704800,-500.0,0.0005589,120]
[342724706,1732086704809,-500.0,0.0005589,120]
[342724707,1732086704818,-422.94867413,0.0005589,120]
[342724708,1732086704828,-500.0,0.0005589,7]
[342724709,1732086704837,-500.0,0.0005589,120]
[342724710,1732086704847,-500.0,0.0005589,120]
[342724711,1732086704856,-500.0,0.0005589,120]
[342724712,1732086704865,-500.0,0.0005589,120]
[342724713,1732086704875,-500.0,0.0005589,120]
[342724714,1732086704884,-500.0,0.0005589,120]
[342724715,1732086704894,-502.08553934,0.0005589,120]
[342724716,1732086704903,-500.0,0.0005589,120]
[342724717,1732086704912,-500.0,0.0005589,120]
[342724718,1732086704922,-500.0,0.0005589,120]
[342724719,1732086704931,-500.0,0.0005589,120]
[342724720,1732086704940,-500.0,0.0005589,120]
[342724721,1732086704950,-500.0,0.0005589,120]
[342724722,1732086704960,-506.49596017,0.0005589,120]
[342724723,1732086704969,-500.0,0.0005589,120]
[342724724,1732086704979,-1703.66,0.0005589,120]
[342724725,1732086704989,-502.76300253,0.0005589,120]
[342724726,1732086704998,-966.97,0.0005589,120]
[342724727,1732086705008,-500.0,0.0005589,120]
[342724728,1732086705017,-502.30389017,0.0005589,120]
[342724729,1732086705027,-500.0,0.0005589,120]
[342724730,1732086705037,-500.0,0.0005589,120]
[342724731,1732086705047,-500.0,0.0005589,120]
[342724732,1732086705056,-500.0,0.0005589,120]
[342724733,1732086705067,-212.01218827,0.0005589,120]
[342724734,1732086705077,-501.46328382,0.0005589,120]
[342724735,1732086705087,-500.0,0.0005589,120]
[342724736,1732086705097,-500.0,0.0005589,120]
[342724737,1732086705107,-500.0,0.0005589,120]
[342724738,1732086705117,-500.0,0.0005589,120]
[342724739,1732086705127,-240.76619312,0.0005589,120]
[342724740,1732086705136,-500.0,0.0005589,120]
[342724741,1732086705147,-501.69881752,0.0005589,120]
[342724742,1732086705157,-500.0,0.0005589,120]
[342724743,1732086705167,-500.0,0.0005589,120]
[342724744,1732086705176,-500.0,0.0005589,120]
[342724745,1732086705186,-530.43743866,0.0005589,120]
[342724746,1732086705197,-505.00925782,0.0005589,120]
[342724747,1732086705208,-500.0,0.0005589,120]
[342724748,1732086705217,-502.88440025,0.0005589,120]
[342724749,1732086705228,-500.0,0.0005589,120]
[342724750,1732086705237,-500.0,0.0005589,120]
[342724751,1732086705247,-504.18534521,0.0005589,120]
[342724752,1732086705258,-636.29646067,0.0005589,120]
[342724753,1732086705268,-500.0,0.0005589,120]
[342724754,1732086705278,-500.0,0.0005589,120]
[342724755,1732086705287,-500.0,0.0005589,120]
[342724756,1732086705297,-500.0,0.0005589,120]
[342724757,1732086705308,-500.0,0.0005589,120]
[342724758,1732086705321,-2720.0,0.0005589,120]
[342724759,1732086705330,-500.0,0.0005589,120]
[342724760,1732086705339,-170.95362707,0.0005589,120]
[342724761,1732086705348,-500.0,0.0005589,120]
[342724762,1732086705359,-500.0,0.0005589,120]
[342724763,1732086705369,-503.66904323,0.0005589,120]
[342724764,1732086705378,-513.20444734,0.0005589,120]
[342724765,1732086705389,-500.0,0.0005589,120]
[342724766,1732086705399,-500.0,0.0005589,120]
[342724767,1732086705408,-500.0,0.0005589,120]
[342724768,1732086705417,-500.0,0.0005589,120]
[342724769,1732086705426,-500.0,0.0005589,120]
[342724770,1732086705436,-500.0,0.0005589,120]
[342724771,1732086705445,-829.63,0.0005589,120]
[342724772,1732086705457,-500.0,0.0005589,120]
[342724773,1732086705466,-549.79653126,0.0005589,120]
[342724774,1732086705476,-500.0,0.0005589,120]
[342724775,1732086705488,-150.00303089,0.0005589,120]
[342724776,1732086705498,-314.999902,0.0005589,60]
[342724777,1732086705509,-500.0,0.0005589,120]
[342724778,1732086705519,-500.0,0.0005589,120]
[342724779,1732086705529,-500.0,0.0005589,120]
[342724780,1732086705539,-501.41452167,0.0005589,120]
[342724781,1732086705550,-224.87063029,0.0005589,120]
[342724782,1732086705560,-500.0,0.0005589,120]
[342724783,1732086705570,-503.53013004,0.0005589,120]
[342724784,1732086705580,-500.0,0.0005589,120]
[342724785,1732086705591,-501.46642542,0.0005589,120]
[342724786,1732086705601,-620.27,0.0005589,120]
[342724787,1732086705612,-500.0,0.0005589,120]
[342724788,1732086705622,-2345.32,0.0005589,120]
[342724789,1732086705631,-500.0,0.0005589,120]
[342724790,1732086705641,-500.0,0.0005589,120]
[342724791,1732086705651,-500.0,0.0005589,120]
[342724792,1732086705663,-507.48212756,0.0005589,120]
[342724793,1732086705674,-500.0,0.0005589,120]
[342724794,1732086705685,-500.0,0.0005589,120]
[342724795,1732086705694,-250.0,0.0005589,120]
[342724796,1732086705704,-500.0,0.0005589,120]
[342724797,1732086705716,-500.0,0.0005589,120]
[342724798,1732086705726,-500.0,0.0005589,120]
[342724799,1732086705737,-1166.49,0.0005589,120]
[342724800,1732086705746,-500.0,0.0005589,120]
[342724801,1732086705755,-635.02852548,0.0005589,120]
[342724802,1732086705765,-734.6,0.0005589,120]
[342724803,1732086705775,-500.0,0.0005589,120]
[342724804,1732086705784,-500.0,0.0005589,120]
[342724805,1732086705794,-500.0,0.0005589,120]
[342724806,1732086705804,-500.0,0.0005589,120]
[342724807,1732086705813,-500.0,0.0005589,120]
[342724808,1732086705822,-500.0,0.0005589,120]
[342724809,1732086705832,-504.58907762,0.0005589,120]
[342724810,1732086705842,-500.0,0.0005589,120]
[342724811,1732086705853,-503.56699987,0.0005589,120]
[342724812,1732086705862,-2844.38,0.0005589,120]
[342724813,1732086705872,-500.0,0.0005589,120]
[342724814,1732086705881,-500.0,0.0005589,120]
[342724815,1732086705891,-500.0,0.0005589,120]
[342724816,1732086705901,-503.97411531,0.0005589,120]
[342724817,1732086705911,-334.08532912,0.0005589,120]
[342724818,1732086705921,-500.0,0.0005589,120]
[342724819,1732086705931,-500.0,0.0005589,120]
[342724820,1732086705941,-501.8519377,0.0005589,120]
[342724821,1732086705950,-506.34959709,0.0005589,120]
[342724822,1732086705960,-1035.53,0.0005589,120]
[342724823,1732086705969,-246.94527877,0.0005589,120]
[342724824,1732086705978,-500.0,0.0005589,120]
[342724825,1732086705988,-1318.23,0.0005589,120]
[342724826,1732086705997,-500.0,0.0005589,120]
[342724827,1732086706007,-500.0,0.0005589,120]
[342724828,1732086706016,-500.0,0.0005589,120]
[342724829,1732086706028,-512.36180884,0.0005589,120]
[342724830,1732086706038,-221.74428925,0.0005589,120]
[342724831,1732086706048,-153.93606593,0.0005589,120]
[342724832,1732086706058,-500.0,0.0005589,120]
[342724833,1732086706068,-506.88180246,0.0005589,120]
[342724834,1732086706077,-514.29186274,0.0005589,120]
[342724835,1732086706087,-400.36,0.0005589,7]
[342724836,1732086706096,-150.0,0.0005589,120]
[342724837,1732086706107,-500.0,0.0005589,120]
[342724838,1732086706116,-638.64277906,0.0005589,120]
[342724839,1732086706126,-509.11796862,0.0005589,120]
[342724840,1732086706136,-500.0,0.0005589,120]
[342724841,1732086706146,-503.21,0.0005589,120]
[342724842,1732086706156,-500.0,0.0005589,120]
[342724843,1732086706165,-505.94700123,0.0005589,120]
[342724844,1732086706175,-503.77182996,0.0005589,120]
[342724845,1732086706185,-500.0,0.0005589,120]
[342724846,1732086706194,-500.0,0.0005589,120]
[342724847,1732086706204,-150.0,0.0005589,120]
[342724848,1732086706213,-498.43530565,0.0005589,120]
[342724849,1732086706223,-500.0,0.0005589,120]
[342724850,1732086706232,-500.0,0.0005589,120]
[342724851,1732086706241,-500.0,0.0005589,120]
[342724852,1732086706251,-500.0,0.0005589,120]
[342724853,1732086706260,-500.0,0.0005589,120]
[342724854,1732086706271,-500.0,0.0005589,120]
[342724855,1732086706281,-2000.0,0.0005589,120]
[342724856,1732086706291,-500.0,0.0005589,120]
[342724857,1732086706301,-500.0,0.0005589,120]
[342724858,1732086706312,-500.0,0.0005589,120]
[342724859,1732086706323,-500.0,0.0005589,120]
[342724860,1732086706332,-320.33916872,0.0005589,120]
[342724861,1732086706342,-2333.06,0.0005589,120]
[342724862,1732086706353,-474.61045752,0.0005589,120]
[342724863,1732086706363,-500.0,0.0005589,120]
[342724864,1732086706373,-500.0,0.0005589,120]
[342724865,1732086706383,-500.0,0.0005589,120]
[342724866,1732086706394,-500.0,0.0005589,120]
[342724867,1732086706404,-500.0,0.0005589,120]
[342724868,1732086706413,-500.0,0.0005589,120]
[342724869,1732086706423,-628.25203929,0.0005589,120]
[342724870,1732086706433,-298.94100227,0.0005589,120]
[342724871,1732086706443,-500.0,0.0005589,120]
[342724872,1732086706454,-501.99798713,0.0005589,120]
[342724873,1732086706464,-500.0,0.0005589,120]
[342724874,1732086706475,-500.0,0.0005589,120]
[342724875,1732086706485,-502.71749901,0.0005589,120]
[342724876,1732086706495,-500.0,0.0005589,120]
[342724877,1732086706505,-500.0,0.0005589,120]
[342724878,1732086706515,-501.22910096,0.0005589,120]
[342724879,1732086706524,-489.4857469,0.0005589,120]
[342724880,1732086706535,-500.0,0.0005589,120]
[342724881,1732086706545,-500.0,0.0005589,120]
[342724882,1732086706555,-500.0,0.0005589,120]
[342724883,1732086706566,-500.0,0.0005589,120]
[342724884,1732086706576,-500.0,0.0005589,120]
[342724885,1732086706587,-500.0,0.0005589,120]
[342724886,1732086706596,-500.0,0.0005589,120]
[342724887,1732086706608,-500.0,0.0005589,120]
[342724888,1732086706617,-500.0,0.0005589,120]
[342724889,1732086706627,-500.0,0.0005589,120]
[342724890,1732086706636,-500.0,0.0005589,120]
[342724891,1732086706647,-500.0,0.0005589,120]
[342724892,1732086706657,-523.8209917,0.0005589,120]
[342724893,1732086706669,-503.00764138,0.0005589,120]
[342724894,1732086706680,-500.0,0.0005589,120]
[342724895,1732086706689,-502.67471521,0.0005589,120]
[342724896,1732086706701,-500.0,0.0005589,120]
[342724897,1732086706711,-500.0,0.0005589,120]
[342724898,1732086706722,-500.0,0.0005589,120]
[342724899,1732086706733,-500.0,0.0005589,120]
[342724900,1732086706744,-500.0,0.0005589,120]
[342724901,1732086706756,-500.0,0.0005589,120]
[342724902,1732086706767,-3055.61,0.0005589,120]
[342724903,1732086706777,-500.0,0.0005589,120]
[342724904,1732086706787,-500.0,0.0005589,120]
[342724905,1732086706798,-223.53267982,0.0005589,120]
[342724906,1732086706809,-500.0,0.0005589,120]
[342724907,1732086706821,-500.0,0.0005589,120]
[342724908,1732086706830,-500.0,0.0005589,120]
[342724909,1732086706841,-500.0,0.0005589,120]
[342724910,1732086706851,-500.0,0.0005589,120]
[342724911,1732086706865,-500.0,0.0005589,120]
[342724912,1732086706875,-500.0,0.0005589,120]
[342724913,1732086706885,-3168.55,0.0005589,120]
[342724914,1732086706894,-500.0,0.0005589,120]
[342724915,1732086706904,-500.0,0.0005589,120]
[342724916,1732086706913,-500.0,0.0005589,120]
[342724917,1732086706923,-504.75971285,0.0005589,120]
[342724918,1732086706932,-500.0,0.0005589,120]
[342724919,1732086706942,-1697.92,0.0005589,120]
[342724920,1732086706952,-500.0,0.0005589,120]
[342724921,1732086706961,-500.0,0.0005589,120]
[342724922,1732086706971,-500.0,0.0005589,120]
[342724923,1732086706980,-500.0,0.0005589,120]
[342724924,1732086706990,-500.0,0.0005589,120]
[342724925,1732086707000,-500.0,0.0005589,120]
[342724926,1732086707010,-500.0,0.0005589,120]
[342724927,1732086707020,-512.58809902,0.0005589,120]
[342724928,1732086707031,-500.0,0.0005589,120]
[342724929,1732086707040,-288.25790741,0.0005589,120]
[342724930,1732086707050,-500.0,0.0005589,120]
[342724931,1732086707060,-500.0,0.0005589,120]
[342724932,1732086707069,-500.0,0.0005589,120]
[342724933,1732086707079,-500.0,0.0005589,120]
[342724934,1732086707088,-452.42594364,0.0005589,120]
[342724935,1732086707099,-500.0,0.0005589,120]
[342724936,1732086707110,-504.0933402,0.0005589,120]
[342724937,1732086707120,-500.0,0.0005589,120]
[342724938,1732086707131,-500.0,0.0005589,120]
[342724939,1732086707141,-516.10069229,0.0005589,120]
[342724940,1732086707152,-500.0,0.0005589,120]
[342724941,1732086707164,-500.0,0.0005589,120]
[342724942,1732086707175,-472.03245182,0.0005589,120]
[342724943,1732086707186,-630.94773887,0.0005589,120]
[342724944,1732086707196,-500.0,0.0005589,120]
[342724945,1732086707207,-500.0,0.0005589,120]
[342724946,1732086707217,-500.0,0.0005589,120]
[342724947,1732086707227,-500.0,0.0005589,120]
[342724948,1732086707236,-500.0,0.0005589,120]
[342724949,1732086707247,-514.88202663,0.0005589,120]
[342724950,1732086707257,-500.0,0.0005589,120]
[342724951,1732086707268,-500.0,0.0005589,120]